Cogmind - Beta 15 @@@ ROGUE MODE // 2025.08.29 @ 13:02:16 Player: NQH Result: Destroyed by G-50 Soldier with Heavy Laser Performance ------------- Evolutions (4) 2000 Regions Visited (9) 1800 Robots Destroyed (4) 20 Value Destroyed (200) 200 Prototype IDs (1) 20 Alien Tech Used (0) 0 Bonus (1615) 1615 TOTAL SCORE: 5655 Bonus ------- Pacifist 1055 Follower Combat Kills 60 Entered DSFs 500 Cogmind --------- Core Integrity 0/850 Matter 300/300 Energy 100/100 System Corruption 2% Temperature Cool (9) Movement Core (50) Location -6/Lower Caves Parts ------- > --- POWER (1) -------- (None) > --- PROPULSION (10) -- (None) > --- UTILITY (2) ------ (None) > --- WEAPON (2) ------- (None) > --- INVENTORY (5) ---- Authchip [Propulsion] Authchip [Propulsion] Authchip [Propulsion] Authchip [Propulsion] Peak State ------------ > --- POWER ------------ Cooled Fission Core > --- PROPULSION ------- Compact Wheel Compact Wheel > --- UTILITY ---------- Authchip [Propulsion] > --- WEAPON ----------- Quantum Rifle Quantum Rifle > --- INVENTORY -------- Authchip [Propulsion] Authchip [Propulsion] Authchip [Propulsion] Authchip [Propulsion] Makeshift Laser [Rating: 31] Favorites ----------- Power Cooled Fission Core Engine Backup Power III Power Core Cooled Fission Core Propulsion Compact Wheel Leg Carbon-fiber Leg Wheel Compact Wheel Hover Unit Backup Propulsion III Flight Unit Improved Surge Thruster Utility Authchip [Propulsion] Device Trap Scanner Processor Advanced Visual Processing Unit Hackware Authchip [Propulsion] Protection Medium Reactive Plating Weapon Quantum Rifle Energy Gun Quantum Rifle Energy Cannon Improved EM Pulse Cannon Build | -11 -10 -10 -8 -7 -7 -7 -7 -6 -6 ------- Run | Yrd Mat Sub Mat Fac Was Fac DSF Fac Low Slots Evolved 8 | . . . 4 2 . . . 2 . Power . | . . . . . . . . . . Propulsion 8 | . . . 4 2 . . . 2 . Utility . | . . . . . . . . . . Weapon . | . . . . . . . . . . Parts Attached 23 | . . . 3 4 2 . 8 3 3 Power 1 | . . . . . 1 . . . . Engine . | . . . . . . . . . . Core 1 | . . . . . 1 . . . . Reactor . | . . . . . . . . . . Propulsion 10 | . . . 1 . 1 . 6 1 1 Treads . | . . . . . . . . . . Leg 1 | . . . . . . . . . 1 Wheel 7 | . . . . . . . 6 1 . Hover 1 | . . . 1 . . . . . . Flight 1 | . . . . . 1 . . . . Utility 7 | . . . 2 3 . . 2 . . Device 1 | . . . . 1 . . . . . Storage . | . . . . . . . . . . Processor 2 | . . . . 2 . . . . . Hackware 2 | . . . . . . . 2 . . Protection 2 | . . . 2 . . . . . . Artifact . | . . . . . . . . . . Weapon 5 | . . . . 1 . . . 2 2 Energy Gun 4 | . . . . . . . . 2 2 Energy Cannon 1 | . . . . 1 . . . . . Ballistic Gun . | . . . . . . . . . . Ballistic Cannon . | . . . . . . . . . . Launcher . | . . . . . . . . . . Special Weapon . | . . . . . . . . . . Impact Weapon . | . . . . . . . . . . Slashing Weapon . | . . . . . . . . . . Piercing Weapon . | . . . . . . . . . . Special Melee Weapon . | . . . . . . . . . . Unidentified Prototypes 1 | . . . . . 1 . . . . Parts Lost 18 | . . . . 1 . . 8 . 9 Power 1 | . . . . . . . . . 1 Propulsion 8 | . . . . . . . 5 . 3 Utility 4 | . . . . . . . 3 . 1 Weapon 5 | . . . . 1 . . . . 4 Highest Loss Streak 9 | . . . . 1 . . 8 . 9 To Critical Strikes . | . . . . . . . . . . Average Backups 2 | . . . . . . 1 3 5 4 Power . | . . . . . . . 1 1 . Propulsion . | . . . . . . . . . . Utility 2 | . . . . . . . 2 4 4 Weapon . | . . . . . . . . . . Tool/Special . | . . . . . . . . . . Unused Backups 4 | . . . . . . . . . 4 Power . | . . . . . . . . . . Propulsion . | . . . . . . . . . . Utility 4 | . . . . . . . . . 4 Weapon . | . . . . . . . . . . Tool/Special . | . . . . . . . . . . Average Slot Usage (%) 22 | . . . 7 17 25 30 15 15 30 Wheel 5 | . . . . . . . 5 6 10 Device 1 | . . . . 5 7 7 4 . . Processor 2 | . . . . 6 7 7 4 . . Hackware 3 | . . . . . . . . 6 5 Energy Gun 5 | . . . . . 4 3 . 2 11 Peak Build Rating 31 | . . . 11 11 21 19 12 24 31 Average Rating 14 | . . . 2 8 10 9 6 9 22 On Entrance 6 | . . . . . 6 21 6 7 24 Naked Turns 213 | . 34 98 34 7 . . . . 40 Heaviest Build 40 | . . . 40 9 16 2 2 12 26 Greatest Support 48 | 3 3 3 8 8 16 3 48 32 32 Greatest Overweight (x) 5 | . . . 4 2 5 . . . 3 Average Overweight (x) . | . . . . . . . . . . Largest Inventory Capacity 5 | 5 5 5 5 5 5 5 5 5 5 Average Capacity 5 | 5 5 5 5 5 5 5 5 5 5 Most Carried 5 | . . . 1 1 1 5 5 5 5 Average Carried 2 | . . . . . . 2 3 5 4 Final Capacity 5 | 5 5 5 5 5 5 5 5 5 5 Final Carried 5 | . . . 1 . 1 1 5 5 4 Class Distribution -------------------- 100% | Mutant Dominant Class ---------------- Mutant | -10/Materials Mutant | -10/Subcaves Mutant | -8/Materials Mutant | -7/Factory Mutant | -7/Waste Mutant | -7/Factory Mutant | -7/DSF Mutant | -6/Factory Mutant | -6/Lower Caves Resources | -11 -10 -10 -8 -7 -7 -7 -7 -6 -6 ----------- Run | Yrd Mat Sub Mat Fac Was Fac DSF Fac Low Matter Collected 389 | 200 . . . . . . 21 . 168 Remotely . | . . . . . . . . . . Salvage Created 230 | . . . . . . . . . 230 Parts 7 | . . . . . . . . . 7 Haulers Intercepted . | . . . . . . . . . . Recyclers Shooed . | . . . . . . . . . . Parts Field Recycled . | . . . . . . . . . . Retrieved Matter . | . . . . . . . . . . Parts Self-Destructed 5 | . . . . . . . . . 5 Prevented . | . . . . . . . . . . Kills | -11 -10 -10 -8 -7 -7 -7 -7 -6 -6 ------- Run | Yrd Mat Sub Mat Fac Was Fac DSF Fac Low Combat Hostiles Destroyed 4 | . . . . . . . . . 4 Guns 4 | . . . . . . . . . 4 Classes Destroyed 2 | . . . . . . . . . 2 Grunt 3 | . . . . . . . . . 3 Duelist 1 | . . . . . . . . . 1 Best Kill Streak 2 | . . . . . . . . . 2 Combat Bots Only 2 | . . . . . . . . . 2 Max Kills in Single Turn 1 | . . . . . . . . . 1 Gunslinging . | . . . . . . . . . . Exploded . | . . . . . . . . . . Melee . | . . . . . . . . . . Uniques/NPCs Destroyed . | . . . . . . . . . . Combat | -11 -10 -10 -8 -7 -7 -7 -7 -6 -6 -------- Run | Yrd Mat Sub Mat Fac Was Fac DSF Fac Low Hostile Shots Fired 194 | 2 . 1 49 45 . . 15 . 82 Missed 46 | . . . 19 14 . . 2 . 11 Hits 148 | 2 . 1 30 31 . . 13 . 71 Melee 3 | . . . . . . . . . 3 Projectile 145 | 2 . 1 30 31 . . 13 . 68 Critical Strikes 6 | . . . . . . . 4 . 2 Damage Taken 2593 | 26 5 18 252 243 . . 626 . 1423 Core 1738 | 26 5 18 189 136 . . 496 . 868 Absorbed by Shields . | . . . . . . . . . . Ignored by Resistances 29 | . . . 29 . . . . . . Core Remaining (%) 60 | 89 . 80 65 . . . 9 . . Volleys Fired 14 | . . . . . . . . . 14 Largest 2 | . . . . . . . . . 2 Hottest 188 | . . . . . . . . . 188 Shots Fired 20 | . . . . . . . . . 20 Gun 20 | . . . . . . . . . 20 Cannon . | . . . . . . . . . . Launcher . | . . . . . . . . . . Special . | . . . . . . . . . . Kinetic . | . . . . . . . . . . Thermal 20 | . . . . . . . . . 20 Explosive . | . . . . . . . . . . Electromagnetic . | . . . . . . . . . . Robot Hit Streak 7 | . . . . . . . . . 7 Robot Miss Streak 2 | . . . . . . . . . 2 Penetration Max . | . . . . . . . . . . Secondary Targets . | . . . . . . . . . . Shots Hit Robots 16 | . . . . . . . . . 16 Core Hits 12 | . . . . . . . . . 12 Critical Kills . | . . . . . . . . . . Critical Parts Destroyed . | . . . . . . . . . . Critical Strikes . | . . . . . . . . . . Melee Attacks . | . . . . . . . . . . Impact . | . . . . . . . . . . Slashing . | . . . . . . . . . . Piercing . | . . . . . . . . . . Sneak Attacks . | . . . . . . . . . . Combat Hostiles . | . . . . . . . . . . Follow-up Attacks . | . . . . . . . . . . Damage Inflicted 546 | 5 12 . 25 23 . . . . 481 Guns 441 | . . . . . . . . . 441 Cannons . | . . . . . . . . . . Explosions . | . . . . . . . . . . Melee . | . . . . . . . . . . Ramming 105 | 5 12 . 25 23 . . . . 40 Kinetic . | . . . . . . . . . . Thermal 441 | . . . . . . . . . 441 Explosive . | . . . . . . . . . . Electromagnetic . | . . . . . . . . . . Impact . | . . . . . . . . . . Slashing . | . . . . . . . . . . Piercing . | . . . . . . . . . . Highest Corruption 2 | . . . . . . . . . 2 Average Corruption 2 | . . . . . . . . . 2 Corruption Purged . | . . . . . . . . . . Corruption Blocked . | . . . . . . . . . . Overload Shots . | . . . . . . . . . . Overflow Damage . | . . . . . . . . . . Projectiles . | . . . . . . . . . . Explosions . | . . . . . . . . . . Melee . | . . . . . . . . . . Knockbacks . | . . . . . . . . . . Impact . | . . . . . . . . . . Kinetic . | . . . . . . . . . . Secondary . | . . . . . . . . . . Self-Inflicted Damage 40 | 2 5 . 12 10 . . . . 11 Shots . | . . . . . . . . . . Rammed 19 | 1 4 . 3 5 . . . . 6 Targets Rammed 34 | 1 4 . 3 5 . . . . 21 Kicked 15 | . . . . . . . . . 15 Crushed . | . . . . . . . . . . Highest Temperature 388 | . . . . . . . . . 388 Average Temperature 120 | . . . . . . . . . 120 Received Heat Transfer 783 | 12 . 6 45 72 . . . . 648 Siege Activations . | . . . . . . . . . . Martial Activations . | . . . . . . . . . . Shielding Activations . | . . . . . . . . . . Robots Disrupted . | . . . . . . . . . . Combat Hostiles . | . . . . . . . . . . Robots Corrupted . | . . . . . . . . . . Combat Hostiles . | . . . . . . . . . . Parts Fried . | . . . . . . . . . . Impact Corruptions . | . . . . . . . . . . Robots Melted . | . . . . . . . . . . Combat Hostiles . | . . . . . . . . . . Parts Melted 3 | . . . . . . . . . 3 Heat Transferred 666 | . . . . . . . . . 666 Parts Sabotaged . | . . . . . . . . . . Parts Stolen . | . . . . . . . . . . Parts Stripped . | . . . . . . . . . . Power Chain Reactions . | . . . . . . . . . . Alert | -11 -10 -10 -8 -7 -7 -7 -7 -6 -6 ------- Run | Yrd Mat Sub Mat Fac Was Fac DSF Fac Low Maximum Alert Level . | . . . . . . . . . . Low Security (%) 100 | 100 100 . 100 100 100 100 100 100 . Level 1 . | . . . . . . . . . . Level 2 . | . . . . . . . . . . Level 3 . | . . . . . . . . . . Level 4 . | . . . . . . . . . . Level 5 . | . . . . . . . . . . High Security . | . . . . . . . . . . Max Security . | . . . . . . . . . . Peak Influence 60 | . . . 30 60 22 . 15 . . Initial 17 | . . . . 9 17 . . . . Average 2 | . . . 4 4 2 . . . . Influence Increases 238 | . . . 30 60 28 . 30 . 90 Destroy 0b10 Robot/C 80 | . . . . . . . . . 80 Destroy Leader 10 | . . . . . . . . . 10 Destroy Structure 28 | . . . . . 28 . . . . Lose Combat Pursuer 120 | . . . 30 60 . . 30 . . Influence Decreases 238 | . . . 10 30 78 . 30 . 90 Entered New Map 44 | . . . . 11 33 . . . . Time Decay 94 | . . . 10 19 17 . . . 48 Lost Part 72 | . . . . . . . 30 . 42 Lost Ally 28 | . . . . . 28 . . . . Squads Dispatched 3 | . . . 2 1 . . . . . Investigation 1 | . . . 1 . . . . . . Extermination . | . . . . . . . . . . Reinforcement 2 | . . . 1 1 . . . . . Assault . | . . . . . . . . . . Garrison . | . . . . . . . . . . Intercept . | . . . . . . . . . . Searches Triggered . | . . . . . . . . . . Construction Impeded . | . . . . . . . . . . Haulers Reinforced . | . . . . . . . . . . Active Scanning Responses . | . . . . . . . . . . Cargo Convoy Interrupts . | . . . . . . . . . . Stealth | -11 -10 -10 -8 -7 -7 -7 -7 -6 -6 --------- Run | Yrd Mat Sub Mat Fac Was Fac DSF Fac Low Distress Signals . | . . . . . . . . . . Communications Jammed . | . . . . . . . . . . Distress Signals . | . . . . . . . . . . Times Spotted 34 | 1 . 1 11 6 6 . 3 1 5 Peak Tracking Total 9 | 1 . . 9 5 6 . 1 1 4 Tactical Retreats 5 | . . . 1 1 1 . 2 . . Traps | -11 -10 -10 -8 -7 -7 -7 -7 -6 -6 ------- Run | Yrd Mat Sub Mat Fac Was Fac DSF Fac Low Traps Triggered 2 | . . . 1 1 . . . . . Indirectly . | . . . . . . . . . . Trap Hack Attempts . | . . . . . . . . . . Triggered . | . . . . . . . . . . Disarmed . | . . . . . . . . . . Reprogrammed . | . . . . . . . . . . Reused . | . . . . . . . . . . Traps Extracted . | . . . . . . . . . . Installed . | . . . . . . . . . . Triggered . | . . . . . . . . . . Machines | -11 -10 -10 -8 -7 -7 -7 -7 -6 -6 ---------- Run | Yrd Mat Sub Mat Fac Was Fac DSF Fac Low Machines Disabled . | . . . . . . . . . . Max in Single Turn . | . . . . . . . . . . Machines Repaired . | . . . . . . . . . . Machines Dismantled . | . . . . . . . . . . Machines Sabotaged . | . . . . . . . . . . Overloaded Fab Kills . | . . . . . . . . . . Hacking | -11 -10 -10 -8 -7 -7 -7 -7 -6 -6 --------- Run | Yrd Mat Sub Mat Fac Was Fac DSF Fac Low Machines Accessed 4 | . . 1 . 1 . 1 . 1 . Terminals 1 | . . . . . . 1 . . . Fabricators 2 | . . . . 1 . . . 1 . Repair Stations . | . . . . . . . . . . Recycling Units . | . . . . . . . . . . Scanalyzers . | . . . . . . . . . . Garrison Access . | . . . . . . . . . . Total Hacks 8 | . . 4 . 1 . 2 . 1 . Successful 7 | . . 4 . 1 . 1 . 1 . Failed 1 | . . . . . . 1 . . . Catastrophic . | . . . . . . . . . . Database Lockouts . | . . . . . . . . . . Manual . | . . . . . . . . . . Terminals 2 | . . . . . . 2 . . . Fabricators 2 | . . . . 1 . . . 1 . Repair Stations . | . . . . . . . . . . Recycling Units . | . . . . . . . . . . Scanalyzers . | . . . . . . . . . . Garrison Access . | . . . . . . . . . . Terminal Hacks 5 | . . 4 . . . 1 . . . Record 4 | . . 4 . . . . . . . Open DSF 1 | . . . . . . 1 . . . Fabricator Hacks 2 | . . . . 1 . . . 1 . Network Status 1 | . . . . 1 . . . . . Build 1 | . . . . . . . . 1 . Repair Station Hacks . | . . . . . . . . . . Recycling Unit Hacks . | . . . . . . . . . . Scanalyzer . | . . . . . . . . . . Garrison Access Hacks . | . . . . . . . . . . Unauthorized Hacks . | . . . . . . . . . . Terminals . | . . . . . . . . . . Fabricators . | . . . . . . . . . . Repair Stations . | . . . . . . . . . . Recycling Units . | . . . . . . . . . . Scanalyzers . | . . . . . . . . . . Garrison Access . | . . . . . . . . . . Data Cores Recovered . | . . . . . . . . . . Used . | . . . . . . . . . . Hacking Detections . | . . . . . . . . . . Full Trace Events . | . . . . . . . . . . Feedback Events . | . . . . . . . . . . Feedback Blocked . | . . . . . . . . . . Robot Schematics Acquired . | . . . . . . . . . . Robots Built . | . . . . . . . . . . Authchips . | . . . . . . . . . . Time . | . . . . . . . . . . Total Robot Build Rating . | . . . . . . . . . . Part Schematics Acquired . | . . . . . . . . . . Parts Built 2 | . . . . . . . . 2 . Authchips . | . . . . . . . . . . Time 128 | . . . . . . . . 128 . Total Part Build Rating 16 | . . . . . . . . 16 . Parts Repaired . | . . . . . . . . . . Time . | . . . . . . . . . . Parts Recycled . | . . . . . . . . . . Recycled Matter . | . . . . . . . . . . Retrieved Matter . | . . . . . . . . . . Retrieved Components . | . . . . . . . . . . Parts Scanalyzed . | . . . . . . . . . . Part Schematics Acquired . | . . . . . . . . . . Parts Damaged . | . . . . . . . . . . Bothacking | -11 -10 -10 -8 -7 -7 -7 -7 -6 -6 ------------ Run | Yrd Mat Sub Mat Fac Was Fac DSF Fac Low Used RIF Installer . | . . . . . . . . . . Robots Hacked . | . . . . . . . . . . Non-combat . | . . . . . . . . . . Combat . | . . . . . . . . . . Robot Hacks Applied . | . . . . . . . . . . Relay Couplers Released . | . . . . . . . . . . Fabnet Peak Effective % . | . . . . . . . . . . Robots Rewired . | . . . . . . . . . . Allies Hacked . | . . . . . . . . . . Hacks Repelled . | . . . . . . . . . . Allies | -11 -10 -10 -8 -7 -7 -7 -7 -6 -6 -------- Run | Yrd Mat Sub Mat Fac Was Fac DSF Fac Low Total Allies 18 | . . . . . 18 . . . . Largest Group 18 | . . . . . 18 . . . . Highest-Rated Group 444 | . . . . . 444 . . . . Highest-Rated Ally 35 | . . . . . 35 . . . . Total Orders . | . . . . . . . . . . Ally Attacks 110 | . . . . . 110 . . . . Total Damage 2827 | . . . . . 2827 . . . . Kills 6 | . . . . . 6 . . . . Allies Corrupted . | . . . . . . . . . . Allies Melted . | . . . . . . . . . . Intel | -11 -10 -10 -8 -7 -7 -7 -7 -6 -6 ------- Run | Yrd Mat Sub Mat Fac Was Fac DSF Fac Low Active Infowar (turns) 514 | . . . . 248 195 9 62 . . Optics 337 | . . . . 71 195 9 62 . . Traps 496 | . . . . 238 195 9 54 . . Robot Analysis Total . | . . . . . . . . . . Derelict Logs Recovered . | . . . . . . . . . . Drone Launches . | . . . . . . . . . . Drone Recoveries . | . . . . . . . . . . Exploration | -11 -10 -10 -8 -7 -7 -7 -7 -6 -6 ------------- Run | Yrd Mat Sub Mat Fac Was Fac DSF Fac Low Turns Passed 1822 | 26 34 98 67 310 195 9 90 187 806 Spaces Moved 1563 | 52 60 196 103 327 273 4 123 55 370 Core 1066 | 52 60 196 67 321 242 4 97 . 27 Treads . | . . . . . . . . . . Legs 4 | . . . . . . . . . 4 Wheels 420 | . . . . . . . 26 55 339 Hover 73 | . . . 36 6 31 . . . . Flight . | . . . . . . . . . . Fastest Speed 50 | 50 50 50 50 50 50 50 50 100 50 Average Speed 75 | 50 50 50 56 89 62 50 60 100 102 Slowest Speed 300 | 50 50 50 300 150 300 50 100 100 200 Overloaded Moves . | . . . . . . . . . . Propulsion Burnouts . | . . . . . . . . . . Robots Hopped . | . . . . . . . . . . Potential Cave-ins . | . . . . . . . . . . Cave-ins Triggered . | . . . . . . . . . . Exploration Rate (%) 31 | 5 11 13 14 12 88 . 97 2 37 Regions Visited 9 Branch Regions 2 Pre-discovered Areas 1 | . . 1 . . . . . . . Known Exits Taken 1 | . . . . . . 1 . . . Unknown Exits Taken 5 | 1 1 1 1 . . . . 1 . Scrap Searched 1 | . . . . . . . . . 1 Spaces Dug . | . . . . . . . . . . Terrain Destroyed 1 | . . . . . . . . . 1 Melee . | . . . . . . . . . . Projectile 1 | . . . . . . . . . 1 AOE . | . . . . . . . . . . Terrain Rammed . | . . . . . . . . . . Walls Destroyed . | . . . . . . . . . . Machines Disabled . | . . . . . . . . . . Actions | -11 -10 -10 -8 -7 -7 -7 -7 -6 -6 --------- Run | Yrd Mat Sub Mat Fac Was Fac DSF Fac Low Total 2169 | 52 63 195 109 346 297 15 134 185 773 Wait 509 | . . . . 4 20 . . 128 357 Move 1556 | 52 59 195 102 327 272 3 122 54 370 Hop . | . . . . . . . . . . Pick Up 5 | . . . . . . . 4 . 1 Fast Attach 26 | . . . 3 4 2 1 8 3 5 Attach 4 | . . . . 2 . . . . 2 Detach 11 | . . . 1 3 2 5 . . . Swap . | . . . . . . . . . . Drop 11 | . . . . 1 1 6 . . 3 Fire 14 | . . . . . . . . . 14 Melee . | . . . . . . . . . . Ram 18 | . 4 . 3 5 . . . . 6 Kick 15 | . . . . . . . . . 15 Crush . | . . . . . . . . . . Escape Stasis . | . . . . . . . . . . Rewire . | . . . . . . . . . . Trap . | . . . . . . . . . . Miscellaneous . | . . . . . . . . . . Route ------- -11/Scrapyard -10/Materials -10/Subcaves -8/Materials -7/Factory -7/Waste -7/Factory -7/DSF -6/Factory -6/Lower Caves History --------- Turn | Location | Event 2 | -11/Scrapyard | Met Revision 17 23 | -11/Scrapyard | Discovered new exit (range 8) 27 | -11/Scrapyard | Entered Materials 28 | -10/Materials | Met a group of wandering Federalists 54 | -10/Materials | Discovered new exit (range 9) 61 | -10/Materials | Entered Subcaves 133 | -10/Subcaves | Visited Clippyterm 134 | -10/Subcaves | Learned location of Deep Caves (-7) 154 | -10/Subcaves | Discovered new exit (range 10) 159 | -10/Subcaves | Entered Materials 159 | -8/Materials | Evolved 4 slots: Propulsion x4 211 | -8/Materials | Released all parts (2) 220 | -8/Materials | Discovered new exit (range 10) 226 | -8/Materials | Entered Factory 226 | -7/Factory | Evolved 2 slots: Propulsion x2 312 | -7/Factory | Build established: Mutant 536 | -7/Factory | Sucked down chute 536 | -7/Factory | Entered Waste 542 | -7/Waste | Spotted C-40 Crusher 547 | -7/Waste | Spotted C-40 Crusher 547 | -7/Waste | Spotted C-40 Crusher 561 | -7/Waste | Spotted C-40 Crusher 562 | -7/Waste | Spotted C-40 Crusher 586 | -7/Waste | Spotted C-40 Crusher 606 | -7/Waste | Warlord forces began an assault 638 | -7/Waste | Discovered new exit (range 20) 665 | -7/Waste | Lost 5 allies 731 | -7/Waste | Entered Factory 740 | -7/Factory | Identified exit to DSF 740 | -7/Factory | Entered DSF 774 | -7/DSF | Core integrity fell below 50% 775 | -7/DSF | Discovered new exit (range 16) 776 | -7/DSF | Additional patrols routed to DSF 803 | -7/DSF | Core integrity fell below 20% 830 | -7/DSF | Entered Factory 830 | -6/Factory | Evolved 2 slots: Propulsion x2 860 | -6/Factory | Lost 8 parts (5n3u) 982 | -6/Factory | Fabricated Quantum Rifle (x2) 999 | -6/Factory | Discovered new exit (range 15) 1017 | -6/Factory | Entered Lower Caves 1772 | -6/Lower Caves | Core integrity fell below 50% 1804 | -6/Lower Caves | Core integrity fell below 20% 1814 | -6/Lower Caves | Lost 9 parts (1p3n1u4w) 1823 | -6/Lower Caves | Destroyed by G-50 Soldier with Heavy Laser Last Messages --------------- 01732_ Critical hit (Burn: +37). 01735_ Mak. Laser destroyed. 01738_ Acquired Hvy. Laser. 01745_ Adv. Heat Sink melted. 01745_ Hvy. Laser melted. 01745_ G-50 Soldier destroyed. 01747_ Lgt. Angular Momentum Engine fries itself beyond repair. 01748_ Acquired 48 matter. 01749_ Hvy. Laser destroyed. 01751_ Acquired Carbon-fiber Leg. 01752_ Kicked G-50 Soldier. 01766_ Kicked G-50 Soldier out of the way. 01772_ Kicked G-50 Soldier. 01775_ Carbon-fiber Leg destroyed. 01775_ Slammed into G-50 Soldier. 01776_ Destabilizing: System corrupted (+2). 01777_ Slammed into G-50 Soldier. 01783_ Authchip [Propulsion] destroyed. 01801_ Critical hit (Burn: +37). Map ----- +----------------------------------------------------+ | ????????????????????????????????????????# | | ????????????????????????????????????????# | | ???????????????????????????????????????## ? | | ??????????????????????????????????????## #???# | | ?????????????????????????????????????## #???# | | ????????????????????????????????????## ##### | | ??????????????????????????????????### ## | | ????????????????????????????????### | | ??????????????????????? ???????# | | ?????????????????????? ??????## ### | | ??????????????????????# ??????## # #?# | | ????????????????????### $####### ## #### | | ???????????????????#? """ # ?## ### | | ??????????????? #### """""" #???## ## | | ???????????????? """ """ #????## ##? | | ?????????????????? """ #??????## ##?? | | ???????????????????# """ """ #?????????## #??? | | ???????????????????# """""" #????????## ##?? | | ???????????????????# % """ ##?????### #?? | | ???????????????????# ! ##????# ###?? | | ???????????????????######## #????## #???? | | ??????????????????????????# ##????## ##??? | | ??????????????????????????## ##?##### #??? | | ??????????????????????????## #?## ##?? | | ???????????????????????#### ### ## | | ??????????????????????## @ | | ??????????????????????# % g ## | | ??????????????????????#%%%#### #### | | ?????????????????????##%%%#??## ##??### | | ?????????????????????#%%%%########?????# | | ?????????????????????# ## #####???## | | ???????????????????### # % ##### ## | | ??????????????????## ## ## #?# | | ?????????????????## ### ##?# | | ????????????????## #??# | | ????????????????# ### ###???# | | ????????????????########"### ####?## ####??????## | | ???????????????????????###?###?????####??????????? | | ?????????????????????????????????????????????????? | | ?????????????????????????????????????????????????? | | ?????????????????????????????????????????????????? | | ?????????????????????????????????????????????????? | | ?????????????????????????????????????????????????? | | ?????????????????????????????????????????????????? | | ?????????????????????????????????????????????????? | | ?????????????????????????????????????????????????? | | ?????????????????????????????????????????????????? | | ?????????????????????????????????????????????????? | | ?????????????????????????????????????????????????? | | ?????????????????????????????????????????????????? | +----------------------------------------------------+ Best States ------------- Heat Dissipation 37 Energy Generation 21 Energy Capacity 350 Matter Stores 300 Matter Capacity 300 Sight Range 20 Terrain Scan Density 210 Armor Coverage 450 Resistance: KI 30 Evasion (%) 53 Authchip Count 5 Item Schematics ----------------- None Robot Schematics ------------------ None Fabricated ------------ Quantum Rifle | x2 | -6/Factory | Preloaded Repaired ---------- Nothing Alien Tech Used ----------------- None Achievements -------------- None Challenges ------------ None Game ------ Seed SupersonicEnergyShotgun Manual? 0 Play Time 00:20:36 Cumulative 22.2 hours Start 2025.08.28 @ 20:20:34 End 2025.08.29 @ 13:02:16 Sessions 1 Manual Loads 0 Difficulty Rogue Special Mode None Game No. 76 Rogue 76 Adventurer 0 Explorer 0 Win Type - Total 0 Types 0/0/0/0/0/0/0/0/0/0 Lore% 10 Gallery% 26 Achievement% 24 Wizard Run 0 Options --------- Layout 1 ASCII 0 Keyboard 1 Movement Vi Keybinds 0 Fullscreen 1 Font 16/SmallcapsGlow Map View 55x38 Zoom Use 0% Tactical HUD 1 Map Filters NONE Filters NONE Steam 1 RUN: 7091bfd4-f10e-4d8a-ab35-da147fe69bda